fUSD/lending_fUSD_20241006
["ID","MTS","AMOUNT","RATE_DAILY","PERIOD"]
[339969483,1728244232961,-496.15,0.00031027,2]
[339969484,1728244232971,-358.66,0.00031027,2]
[339969485,1728244232983,-358.66,0.00031027,2]
[339969486,1728244232992,-300.0,0.00031078,2]
[339969487,1728244233001,-398.6084765,0.00031083,2]
[339969488,1728244233012,-398.6084765,0.0003134,2]
[339969489,1728244233021,-167.0,0.00031419,2]
[339969490,1728244233030,-455.3466295,0.00031455,3]
[339969491,1728244233042,-44.6533705,0.00031455,3]
[339969492,1728244233052,-500.0,0.00031464,3]
[339969493,1728244233061,-500.0,0.00031472,3]
[339969494,1728244233071,-500.0,0.00031481,3]
[339969495,1728244233080,-371.42631093,0.0003149,3]
[339969496,1728244233091,-128.57368907,0.0003149,3]
[339969497,1728244233101,-500.0,0.00031499,3]
[339969498,1728244233110,-71.42631093,0.00031508,3]
[339969499,1728244233122,-428.57368907,0.00031508,3]
[339969500,1728244233140,-165.96,0.00031641,2]
[339969501,1728244233150,-150.0,0.00031672,120]
[339969502,1728244233160,-398.6084767,0.00031723,2]
[339969503,1728244233170,-1015.12729283,0.00031922,2]
[339969504,1728244233179,-500.0,0.00031973,5]
[339969505,1728244233189,-241.7305414,0.00031973,5]
[339969506,1728244233202,-258.2694586,0.00031973,5]
[339969507,1728244233211,-91.29897855,0.00031973,2]
[339969508,1728244233223,-277.5783648,0.00031973,2]
[339969510,1728244238278,-131.12265665,0.00031973,2]
[339969511,1728244238287,-1326.35285125,0.0003199,2]
[339969512,1728244238298,-762.66851163,0.0003199,2]
[339969513,1728244238386,-4993.5699671,0.0003199,2]
[339969514,1728244238396,-6873.13740718,0.00032,22]
[339969515,1728244238496,-16161.9681335,0.00032,22]
[339969516,1728244238507,-299.58797889,0.00032,22]
[339969517,1728244238552,-3591.0642001,0.00032,22]
[339969529,1728244240464,-319.51501146,0.00032,22]
[339969530,1728244240476,-694.41356848,0.00032,22]
[339969531,1728244240625,-2743.19188446,0.00032,22]
[339969548,1728244243343,-573.62307675,0.00032,22]
[339969808,1728244246521,-1061.93951153,0.0003135,2]
[339969810,1728244246533,-18743.49873918,0.00032,22]
[339969812,1728244246542,-429.0,0.00032,16]
[339969814,1728244246551,-859.0,0.00032,16]
[339969816,1728244246560,-1800.0,0.00032,33]
[339969818,1728244246569,-2500.0,0.00032024,2]
[339969819,1728244246578,-833.80872078,0.00032055,15]
[339969821,1728244246587,-500.0,0.00032077,2]
[339969823,1728244246598,-500.0,0.00032077,2]
[339969825,1728244246608,-500.0,0.00032077,2]
[339969827,1728244246617,-500.0,0.00032077,2]
[339969829,1728244246631,-500.0,0.00032077,2]
[339969831,1728244246640,-500.0,0.00032077,2]
[339969833,1728244246649,-500.0,0.00032077,2]
[339969834,1728244246658,-500.0,0.00032077,2]
[339969836,1728244246669,-500.0,0.00032077,2]
[339969838,1728244246680,-335.57,0.00032077,2]
[339969840,1728244246689,-234.0,0.00032124,2]
[339969842,1728244246699,-500.0,0.00032154,2]
[339969844,1728244246709,-440.53231007,0.00032154,2]
[339969846,1728244246718,-4739.57543745,0.00032155,30]
[339969848,1728244246727,-14176.69862629,0.00032155,30]
[339969850,1728244246736,-50000.0,0.00032155,30]
[339969852,1728244246746,-50000.0,0.00032155,31]
[339969853,1728244246755,-50000.0,0.00032155,32]
[339969855,1728244246764,-171.5347337,0.00032155,120]
[339969857,1728244246773,-859.0,0.00032155,30]
[339969859,1728244246783,-583.0,0.00032155,30]
[339969861,1728244246792,-1000.0,0.000323,2]
[339969863,1728244246801,-882.65,0.00032479,2]
[339969865,1728244246811,-1072.44,0.00032479,2]
[339969867,1728244246820,-1067.77,0.00032479,2]
[339969869,1728244246829,-534.05,0.00032479,2]
[339969871,1728244246839,-1168.49,0.00032479,2]
[339969873,1728244246848,-974.59,0.00032479,2]
[339969875,1728244246857,-534.16,0.00032479,2]
[339969876,1728244246866,-534.16,0.00032479,2]
[339969878,1728244246875,-534.05,0.00032479,2]
[339969880,1728244246884,-1068.1,0.00032479,2]
[339969882,1728244246894,-1000.0,0.000325,2]
[339969884,1728244246903,-156.68271007,0.000329,2]
[339969886,1728244246912,-650.0,0.000329,2]
[339969888,1728244246922,-167.0,0.00032935,2]
[339969890,1728244246931,-151.6,0.00032944,2]
[339969902,1728244247048,-333.52671401,0.00032973,2]
[339969904,1728244247058,-50000.0,0.00033,23]
[339969906,1728244247067,-429.0,0.00033,18]
[339969908,1728244247076,-1800.0,0.00033,34]
[339969910,1728244247085,-150.0,0.00033056,2]
[339969912,1728244247095,-604.89,0.00033057,120]
[339969914,1728244247104,-151.75,0.00033149,2]
[339969915,1728244247114,-301.7,0.00033152,2]
[339969917,1728244247123,-500.0,0.00033342,5]
[339969919,1728244247132,-1000.0,0.00033342,2]
[339969921,1728244247143,-180.0,0.00033458,120]
[339969924,1728244247156,-7500.0,0.000339,2]
[339969926,1728244247166,-1213.74887142,0.00033917,6]
[339969928,1728244247175,-833.80872076,0.00033943,15]
[339969930,1728244247184,-23709.6139331,0.0003399,5]
[339969932,1728244247195,-50000.0,0.00034,24]
[339969933,1728244247205,-799.99,0.00034017,120]
[339969935,1728244247214,-150.4,0.00034098,2]
[339969937,1728244247223,-167.0,0.0003424,2]
[339969939,1728244247233,-11854.8069666,0.00034488,5]
[339969941,1728244247245,-1000.0,0.00034498,2]
[339969943,1728244247254,-150.0,0.00034548,10]
[339969945,1728244247263,-151.71933367,0.000349,120]
[339969947,1728244247272,-152.0,0.00034945,3]
[339969949,1728244247282,-23709.6139331,0.0003498,5]
[339969951,1728244247291,-23709.6139331,0.0003499,5]
[339969953,1728244247300,-50000.0,0.00035,25]
[339969955,1728244247309,-1000.0,0.00035,2]
[339969957,1728244247319,-1800.0,0.00035,36]
[339969959,1728244247328,-534.05,0.00035068,2]
[339969961,1728244247338,-234.0,0.00035124,2]
[339969963,1728244247348,-500.0,0.00035346,2]
[339969964,1728244247358,-301.7,0.00035416,2]
[339969966,1728244247367,-167.0,0.00035545,2]
[339969968,1728244247378,-604.89,0.00035641,120]
[339969970,1728244247388,-150.0,0.00035831,120]
[339969972,1728244247397,-833.80872076,0.00035832,15]
[339969973,1728244247407,-23709.6139331,0.0003598,6]
[339969975,1728244247417,-374.95064868,0.0003598,2]
[339969977,1728244247427,-23709.6139331,0.0003599,6]
[339969979,1728244247437,-250.0,0.00035999,2]
[339969981,1728244247446,-46929.24704468,0.00036,26]
[339970606,1728244334632,250.0,0.00011,2]
[339970607,1728244335879,300.0,0.00013,2]
[339970608,1728244337106,350.0,0.00015,2]
[339970609,1728244392482,181.36,0.000122,2]
[339970610,1728244600181,162.72,0.00010959,2]
[339970611,1728244699584,163.22,0.000122,2]
[339970613,1728245006403,150.0,0.00013,2]
[339970631,1728245431389,-2305.0,0.000154,2]
[339970633,1728245431398,-150.0,0.000157,2]
[339970635,1728245431408,-400.0,0.00017,2]
[339970637,1728245431417,-450.0,0.00019,2]
[339970639,1728245431426,-395.71,0.000198,7]
[339970641,1728245431435,-436.43535012,0.000198,2]
[339970642,1728245431446,-1255.8546,0.000198,2]
[339970643,1728245431458,-16200.0,0.000198,2]
[339970644,1728245431547,-761.48547022,0.000198,2]
[339970645,1728245431559,-349.86128709,0.000198,2]
[339970646,1728245431600,-7258.66221708,0.000198,2]
[339970647,1728245431612,-300.0,0.000198,2]
[339970648,1728245431657,-580.62835817,0.000198,2]
[339970930,1728245437442,-300.0,0.00018905,2]
[339970931,1728245437452,-442.11629914,0.000198,2]
[339970932,1728245437463,-277.0527081,0.000198,2]
[339970933,1728245437599,-3149.89823999,0.000198,2]
[339970934,1728245437758,-1941.41400334,0.000198,2]
[339970935,1728245437768,-3185.85,0.00020893,2]
[339970936,1728245437777,-447.02,0.00020893,2]
[339970937,1728245437786,-150.0,0.00020999,2]
[339970938,1728245437795,-500.0,0.00021,2]
[339970939,1728245437804,-3102.08,0.00021,2]
[339970940,1728245437823,-550.0,0.00023,2]
[339970941,1728245437832,-499.99,0.00023,2]
[339970942,1728245437841,-151.75,0.00024295,2]
[339970943,1728245437851,-600.0,0.00025,2]
[339970944,1728245437860,-329.76,0.000252,14]
[339970945,1728245437869,-650.0,0.00027,2]
[339970946,1728245437878,-700.0,0.00029,2]
[339970947,1728245437888,-686.65,0.00029654,2]
[339970948,1728245437897,-250.0,0.00030134,2]
[339970949,1728245437906,-273.03,0.00030188,2]
[339970950,1728245437915,-250.0,0.00030218,2]
[339970951,1728245437924,-389.05385113,0.0003024,5]
[339970952,1728245437933,-1529.94,0.00030326,2]
[339970953,1728245437942,-250.0,0.0003039,2]
[339970954,1728245437951,-206.18,0.00030451,2]
[339970955,1728245437961,-151.01,0.00030455,2]
[339970956,1728245437970,-158.61,0.00030571,2]
[339970957,1728245437979,-2426.73,0.00030608,2]
[339970958,1728245437989,-1448.45,0.00030609,2]
[339970959,1728245437998,-186.44,0.00030764,2]
[339970960,1728245438007,-200.0,0.00030853,2]
[339970961,1728245438016,-750.0,0.00031,2]
[339970962,1728245438025,-292.06,0.00031155,2]
[339970963,1728245438034,-151.0,0.00031179,2]
[339970964,1728245438044,-500.0,0.00031226,3]
[339970965,1728245438054,-500.0,0.00031235,3]
[339970966,1728245438074,-150.0,0.00031241,2]
[339970967,1728245438083,-500.0,0.00031244,3]
[339970968,1728245438092,-500.0,0.00031252,3]
[339970969,1728245438220,-500.0,0.00031261,3]
[339970970,1728245438231,-500.0,0.0003127,3]
[339970971,1728245438241,-500.0,0.00031279,3]
[339970972,1728245438250,-500.0,0.00031288,3]
[339970973,1728245438259,-9191.02,0.00031288,2]
[339970974,1728245438268,-500.0,0.00031296,3]
[339970975,1728245438277,-500.0,0.00031305,3]
[339970976,1728245438286,-500.0,0.00031314,3]
[339970977,1728245438295,-500.0,0.00031323,3]
[339970978,1728245438304,-120.56214553,0.00031332,3]
[339970982,1728245441034,-379.43785447,0.00031332,3]
[339970983,1728245441044,-500.0,0.0003134,3]
[339970984,1728245441053,-500.0,0.00031349,3]
[339970985,1728245441063,-500.0,0.00031358,3]
[339970986,1728245441073,-500.0,0.00031367,3]
[339970987,1728245441082,-582.33780023,0.0003137,120]
[339970990,1728245442652,-1256.30294999,0.0003137,120]
[339970991,1728245442759,-161.35924978,0.0003137,120]
[339970992,1728245442768,-401.13075014,0.0003137,2]
[339971117,1728245445684,-289.83806686,0.0003137,2]
[339978708,1728245669311,27.57615456,0.00010959,2]
[339978709,1728245669337,127.37384544,0.00010959,2]
[339978710,1728246127883,163.83244248,0.00011,2]
[339978711,1728246154680,250.0,0.00011,2]
[339978712,1728246155886,300.0,0.00013,2]
[339978713,1728246308267,49158.79371208,0.00011,2]
[339978714,1728246308299,49700.0,0.00011,2]
[339978715,1728246308326,49587.28,0.00011,2]
[339978716,1728246308353,49686.6,0.00011,2]
[339978717,1728246309437,-26567.3418,0.00011,2]
[339978718,1728246310467,-26567.3418,0.00011,2]
[339978768,1728246631592,-604.98,0.00010944,2]
[339978769,1728246631603,-2410.828903,0.00010944,2]
[339978770,1728246631613,-300.0,0.00010999,2]
[339978771,1728246631622,-150.0,0.00010999,2]
[339978772,1728246631631,-93731.1017127,0.00011,2]
[339978773,1728246631650,-11770.47652837,0.00011,2]
[339978774,1728246631709,-1467.87324433,0.00011,2]
[339978775,1728246631720,-3900.0,0.00011,2]
[339978776,1728246631730,-1684.98777253,0.00011,2]
[339978777,1728246631741,-291.26630725,0.00011,2]
[339978778,1728246631767,-872.29746933,0.00011,2]
[339978779,1728246631825,-29470.09594063,0.00011,2]
[339978781,1728246637672,-3365.95,0.00011,2]
[339978782,1728246637803,-1231.76374629,0.00011,2]
[339978783,1728246637863,-364.55288824,0.00011,2]
[339978786,1728246639643,-113954.32677435,0.00011,2]
[339978787,1728246639652,-11932.88784832,0.00011,2]
[339978788,1728246639768,-0.15076853,0.00011,2]
[339978802,1728246642891,-2513.2685352,0.00011,2]
[339979048,1728247831773,-157.73970547,0.000109,2]
[339979049,1728247831782,-2087.50155796,0.00011,2]
[339979050,1728247831982,-25590.98583826,0.00011,2]
[339979051,1728247831991,-718.34,0.00011002,2]
[339979052,1728247832000,-360.00423274,0.00012615,2]
[339979053,1728247832010,-368.92,0.00012838,2]
[339979054,1728247832019,-181.31,0.0001286,2]
[339979055,1728247832029,-250.0,0.00012891,2]
[339979056,1728247832038,-479.99,0.00012904,2]
[339979057,1728247832047,-450.0,0.00012983,2]
[339979058,1728247832056,-854.5,0.00012996,2]
[339979059,1728247832065,-250.0,0.00013,2]
[339979060,1728247832074,-499.99,0.00013,2]
[339979061,1728247832083,-200.0,0.00013031,2]
[339979062,1728247832091,-158.61,0.00013211,2]
[339979064,1728247832100,-352.22,0.00013211,2]
[339979065,1728247832109,-1610.26,0.00013249,2]
[339979067,1728247832118,-150.0,0.00013249,2]
[339979069,1728247832127,-250.0,0.0001325,2]
[339979071,1728247832136,-23900.0,0.0001325,2]
[339979073,1728247832146,-150.99,0.0001325,2]
[339979075,1728247832155,-718.34,0.00013266,2]
[339979076,1728247832164,-500.0,0.0001338,2]
[339979078,1728247832173,-239.25,0.0001338,2]
[339979080,1728247832182,-150.0,0.00013409,2]
[339979082,1728247832190,-1000.0,0.00013592,2]
[339979084,1728247832199,-282.57,0.00013593,2]
[339979085,1728247832208,-205.84,0.00013593,2]
[339979086,1728247832217,-286.14,0.00013646,2]
[339979087,1728247832226,-200.0,0.00013699,2]
[339979088,1728247832235,-1328.91,0.00013821,2]
[339979089,1728247832244,-187.48,0.00013847,2]
[339979090,1728247832254,-182.41,0.00014202,2]
[339979091,1728247832264,-3334.76125798,0.00014298,2]
[339979092,1728247832274,-150.0,0.00014361,2]
[339979093,1728247832283,-1000.0,0.00014489,2]
[339979094,1728247832292,-50253.6804873,0.0001449,2]
[339979095,1728247832301,-940.72322742,0.00014499,5]
[339979096,1728247832310,-195335.49180288,0.000145,3]
[339979097,1728247832325,-1157.66053093,0.000145,3]
[339979098,1728247832337,-1709.87048133,0.000145,3]
[339979185,1728247837824,-950.588354,0.000145,3]
[339979186,1728247838088,-255.53745705,0.000145,3]
[339979217,1728248177401,-250.0,0.00011,2]
[339979218,1728248177422,-300.0,0.00013,2]
[339979219,1728248177442,-305.7723,0.00014399,2]
[339979220,1728248177466,-583.66610455,0.00014417,2]
[339979221,1728248177489,-4322.49851777,0.0001449,2]
[339979222,1728248177511,-150.0,0.00014499,2]
[339979223,1728248177534,-300.0,0.00014499,2]
[339979224,1728248177553,-147295.57397889,0.000145,3]
[339979225,1728248177577,-479.99,0.00014517,2]
[339979226,1728248177600,-187.48,0.00014771,2]
[339979227,1728248177623,-359.95,0.00014899,2]
[339979228,1728248177645,-1298.3,0.00014998,2]
[339979229,1728248177667,-350.0,0.00015,2]
[339979230,1728248304227,164.25,0.00010959,2]
[339979235,1728249031888,-2321.0,0.000154,2]
[339979236,1728249031897,-520.0,0.000154,2]
[339979237,1728249031907,-479.99,0.0001613,2]
[339979238,1728249031916,-400.0,0.00017,2]
[339979239,1728249031925,-10127.60079212,0.00017259,2]
[339979240,1728249032000,-14416.43536878,0.00017259,2]
[339979241,1728249032010,-1260.06463122,0.00017259,2]
[339979242,1728249032057,-8425.39855206,0.00017259,2]
[339979243,1728249032066,-479.99,0.00017743,2]
[339979244,1728249032076,-150.0,0.000182,2]
[339979245,1728249032085,-585.63,0.000182,2]
[339979246,1728249032094,-450.0,0.00019,2]
[339979247,1728249032103,-499.99,0.00019,2]
[339979248,1728249032113,-479.99,0.00019356,2]
[339979249,1728249032122,-2745.43673607,0.0002,7]
[339979250,1728249032131,-3000.0,0.0002,2]
[339979251,1728249032141,-675.0,0.00020419,2]
[339979252,1728249032151,-178.07,0.000206,7]
[339979253,1728249032160,-343.0,0.00020999,2]
[339979254,1728249032169,-6405.65687277,0.00021,2]
[339979256,1728249032180,-1287.62195801,0.00021,2]
[339979323,1728249040125,-672.25079205,0.00021,2]
[339979324,1728249040136,-1277.39671226,0.00021,2]
[339979325,1728249040182,-13351.59220221,0.00021,2]
[339979326,1728249040192,-500.0,0.00021,2]
[339979327,1728249040201,-174.52,0.0002111,2]
[339979328,1728249040210,-194.99,0.00021918,2]
[339979329,1728249040219,-200.0,0.00021962,2]
[339979330,1728249040229,-925.48776345,0.00022,2]
[339979331,1728249040239,-200.0,0.0002222,2]
[339979332,1728249040248,-800.0,0.00022276,2]
[339979333,1728249040257,-312.57,0.0002234,2]
[339979334,1728249040267,-188.51,0.00022358,2]
[339979335,1728249040276,-150.91,0.00022461,2]
[339979336,1728249040285,-309.03,0.00022466,2]
[339979337,1728249040296,-150.0,0.00022499,2]
[339979338,1728249040306,-2900.0,0.000225,15]
[339979339,1728249040315,-182.41,0.00022525,2]
[339979340,1728249040325,-250.0,0.00022537,2]
[339979341,1728249040334,-250.0,0.00022549,2]
[339979342,1728249040344,-3201.56,0.00022558,2]
[339979343,1728249040353,-200.0,0.00022567,2]
[339979344,1728249040363,-250.0,0.00022608,2]
[339979345,1728249040372,-151.52,0.00022655,2]
[339979346,1728249040381,-151.52,0.00022666,2]
[339979347,1728249040390,-151.52,0.00022676,2]
[339979348,1728249040399,-675.0,0.00022683,2]
[339979349,1728249040409,-151.52,0.00022686,2]
[339979350,1728249040418,-151.52,0.00022697,2]
[339979351,1728249040427,-3000.0,0.000227,2]
[339979352,1728249040437,-151.52,0.00022707,2]
[339979353,1728249040446,-151.52,0.00022717,2]
[339979354,1728249040456,-179.36,0.00022722,2]
[339979355,1728249040465,-151.52,0.00022727,2]
[339979356,1728249040475,-151.52,0.00022738,2]
[339979357,1728249040489,-151.52,0.00022748,2]
[339979358,1728249040498,-151.52,0.00022758,2]
[339979359,1728249040508,-151.52,0.00022769,2]
[339979360,1728249040518,-653.5,0.00022772,30]
[339979361,1728249040527,-550.0,0.00023,2]
[339979362,1728249040536,-167.0,0.00023284,2]
[339979363,1728249040546,-180.0,0.00024171,2]
[339979364,1728249040556,-167.0,0.00024245,2]
[339979365,1728249040565,-188.51,0.00024593,2]
[339979366,1728249040575,-174.52,0.00024629,2]
[339979367,1728249040585,-200.0,0.00024708,2]
[339979368,1728249040594,-675.0,0.00024947,2]
[339979369,1728249040604,-600.0,0.00025,2]
[339979370,1728249040613,-800.0,0.0002506,2]
[339979371,1728249040623,-167.0,0.00025205,2]
[339979372,1728249040632,-653.5,0.00025356,30]
[339979373,1728249040641,-3000.0,0.000255,2]
[339979374,1728249040651,-167.0,0.00026166,2]
[339979375,1728249040661,-265.5,0.000262,14]
[339979376,1728249040670,-150.91,0.00026261,2]
[339979377,1728249040680,-188.51,0.00026829,2]
[339979378,1728249040690,-525.29949414,0.000269,2]
[339979379,1728249040699,-250.0,0.00026999,2]
[339979380,1728249040709,-148235.78674982,0.00027,7]
[339979386,1728249046147,-80257.57588725,0.00027,7]
[339979387,1728249046157,-151.0,0.00027,7]
[339979388,1728249046166,-151.0,0.00027,7]
[339979389,1728249046176,-151.0,0.00027,7]
[339979390,1728249046186,-167.0,0.00027127,2]
[339979391,1728249046195,-675.0,0.00027211,2]
[339979392,1728249046204,-211.01,0.00027397,10]
[339979393,1728249046213,-200.0,0.00027453,2]
[339979394,1728249046222,-800.0,0.00027844,2]
[339979395,1728249046233,-653.5,0.0002794,30]
[339979396,1728249046243,-174.52,0.00028147,2]
[339979397,1728249046252,-1500.0,0.000282,2]
[339979398,1728249046262,-150.0,0.00028233,7]
[339979399,1728249046271,-525.29949407,0.00029122,15]
[339979400,1728249046281,-150.0,0.00029279,7]
[339979401,1728249046290,-675.0,0.00029475,2]
[339979402,1728249046301,-500.0,0.00029739,2]
[339979403,1728249046311,-151.0,0.00029746,2]
[339979404,1728249046320,-151.0,0.00029899,7]
[339979405,1728249046329,-151.0,0.00029899,7]
[339979406,1728249046338,-301.208822,0.00029899,7]
[339979407,1728249046347,-151.0,0.00029899,7]
[339979408,1728249046356,-151.0,0.00029899,7]
[339979409,1728249046367,-151.0,0.00029899,7]
[339979410,1728249046376,-199.235674,0.00029899,7]
[339979411,1728249046385,-151.0,0.00029899,7]
[339979412,1728249046395,-151.0,0.00029899,7]
[339979413,1728249046404,-236.179072,0.00029899,7]
[339979414,1728249046413,-236.179072,0.00029899,7]
[339979415,1728249046423,-151.0,0.00029899,7]
[339979416,1728249046433,-151.0,0.00029899,7]
[339979417,1728249046442,-151.0,0.00029899,7]
[339979418,1728249046452,-151.0,0.00029899,7]
[339979419,1728249046461,-151.0,0.00029899,7]
[339979420,1728249046471,-151.0,0.00029899,7]
[339979421,1728249046485,-224.083999,0.00029899,7]
[339979422,1728249046495,-224.083999,0.00029899,7]
[339979423,1728249046503,-151.0,0.00029899,7]
[339979424,1728249046513,-151.0,0.00029899,7]
[339979425,1728249046522,-151.0,0.00029899,7]
[339979426,1728249046637,-151.0,0.00029899,7]
[339979427,1728249046647,-153.376641,0.00029899,7]
[339979428,1728249046657,-151.0,0.00029899,7]
[339979429,1728249046667,-151.0,0.00029899,7]
[339979430,1728249046676,-151.0,0.00029899,7]
[339979431,1728249046687,-151.0,0.00029899,7]
[339979432,1728249046697,-151.0,0.00029899,7]
[339979433,1728249046706,-151.0,0.00029899,7]
[339979434,1728249046716,-56217.40713725,0.000299,2]
[339979435,1728249046726,-1164.15578164,0.000299,2]
[339979436,1728249046735,-224.93010903,0.0002999,2]
[339979437,1728249046745,-890.0,0.0003,15]
[339979438,1728249046755,-10624.78764626,0.0003,2]
[339979439,1728249046764,-15275.62445506,0.0003,2]
[339979440,1728249046773,-2000.0,0.0003,14]
[339979441,1728249046783,-1718.71360541,0.0003,2]
[339979442,1728249046791,-1009.06452383,0.0003,2]
[339979443,1728249046800,-157.0,0.0003,2]
[339979444,1728249046810,-150.91,0.00030061,2]
[339979445,1728249046819,-200.0,0.00030198,2]
[339979446,1728249046829,-227.8325161,0.0003024,5]
[339979447,1728249046838,-150.0,0.00030324,7]
[339979448,1728249046847,-375.0,0.00030345,5]
[339979449,1728249046857,-151.0,0.00030486,7]
[339979450,1728249046866,-653.5,0.00030524,30]
[339979451,1728249046875,-945.0,0.00030537,2]
[339979452,1728249046885,-800.0,0.00030629,2]
[339979453,1728249046894,-500.0,0.00030645,3]
[339979454,1728249046905,-500.0,0.00030654,3]
[339979455,1728249046915,-500.0,0.00030663,3]
[339979456,1728249046924,-500.0,0.00030672,3]
[339979457,1728249046934,-500.0,0.0003068,3]
[339979458,1728249046943,-500.0,0.00030689,3]
[339979459,1728249046953,-500.0,0.00030698,3]
[339979460,1728249046962,-500.0,0.00030707,3]
[339979461,1728249046972,-500.0,0.00030716,3]
[339979462,1728249046982,-500.0,0.00030724,3]
[339979463,1728249046991,-500.0,0.00030733,3]
[339979464,1728249047001,-500.0,0.00030742,3]
[339979465,1728249047010,-500.0,0.00030751,3]
[339979466,1728249047019,-34587.0,0.00030756,2]
[339979467,1728249047028,-151.0,0.00030756,7]
[339979468,1728249047037,-500.0,0.0003076,3]
[339979469,1728249047047,-151.0,0.0003076,7]
[339979470,1728249047055,-151.0,0.0003076,7]
[339979471,1728249047065,-151.0,0.0003076,7]
[339979472,1728249047074,-236.179072,0.0003076,7]
[339979473,1728249047083,-236.179072,0.0003076,7]
[339979474,1728249047093,-151.0,0.0003076,7]
[339979475,1728249047103,-151.0,0.0003076,7]
[339979476,1728249047112,-151.0,0.0003076,7]
[339979477,1728249047121,-151.0,0.0003076,7]
[339979478,1728249047130,-151.0,0.0003076,7]
[339979479,1728249047140,-151.0,0.0003076,7]
[339979480,1728249047149,-206.90968,0.0003076,7]
[339979481,1728249047158,-151.0,0.0003076,7]
[339979482,1728249047167,-217.196763,0.0003076,7]
[339979483,1728249047176,-217.196763,0.0003076,7]
[339979484,1728249047185,-151.0,0.0003076,7]
[339979485,1728249047195,-151.0,0.0003076,7]
[339979486,1728249047204,-151.0,0.0003076,7]
[339979487,1728249047213,-151.0,0.0003076,7]
[339979488,1728249047222,-151.0,0.0003076,7]
[339979489,1728249047232,-151.0,0.0003076,7]
[339979490,1728249047242,-151.0,0.0003076,7]
[339979491,1728249047252,-151.0,0.0003076,7]
[339979492,1728249047262,-151.0,0.0003076,7]
[339979493,1728249047271,-224.083999,0.0003076,7]
[339979494,1728249047280,-224.083999,0.0003076,7]
[339979495,1728249047288,-151.0,0.0003076,7]
[339979496,1728249047298,-179.135244,0.0003076,7]
[339979497,1728249047307,-151.0,0.0003076,7]
[339979498,1728249047316,-151.0,0.0003076,7]
[339979499,1728249047325,-151.0,0.0003076,7]
[339979500,1728249047335,-151.0,0.0003076,7]
[339979501,1728249047344,-151.0,0.0003076,7]
[339979502,1728249047354,-151.0,0.0003076,7]
[339979503,1728249047364,-151.0,0.00030768,7]
[339979504,1728249047373,-500.0,0.00030768,3]
[339979505,1728249047382,-151.0,0.00030777,7]
[339979506,1728249047390,-208.741426,0.00030777,7]
[339979507,1728249047399,-500.0,0.00030777,3]
[339979508,1728249047409,-151.0,0.00030784,7]
[339979509,1728249047418,-500.0,0.00030786,3]
[339979510,1728249047428,-500.0,0.00030795,3]
[339979511,1728249047438,-500.0,0.00030804,3]
[339979512,1728249047448,-500.0,0.00030812,3]
[339979513,1728249047458,-500.0,0.00030821,3]
[339979514,1728249047467,-500.0,0.0003083,3]
[339979515,1728249047478,-500.0,0.00030839,3]
[339979516,1728249047492,-500.0,0.00030848,3]